bitfinex/quotes_BTCUSD_20250225
["timestamp","ask_amount","ask_price","bid_price","bid_amount"]
[1740487811341,0.05695384,89267.0,89237.0,0.12746857]
[1740487811541,0.05695384,89267.0,89248.0,0.0785]
[1740487811687,0.05695384,89267.0,89249.0,0.04776836]
[1740487812127,0.0794,89288.0,89249.0,0.04776836]
[1740487812358,0.0672054,89287.0,89249.0,0.04776836]
[1740487814087,0.0672054,89287.0,89250.0,0.0825]
[1740487814302,0.0016992,89295.0,89252.0,0.0825]
[1740487814511,0.0016992,89295.0,89251.0,0.02363715]
[1740487814512,0.0016992,89295.0,89255.0,0.0825]
[1740487814692,0.0016992,89295.0,89259.0,0.0495]
[1740487815073,0.0016992,89295.0,89261.0,0.0825]
[1740487815274,0.0016992,89295.0,89262.0,0.08406804]
[1740487815412,0.0672054,89309.0,89263.0,0.0825]
[1740487815752,0.551748,89308.0,89265.0,0.0825]
[1740487815963,0.551748,89308.0,89267.0,0.0825]
[1740487815964,0.12927062,89307.0,89267.0,0.0825]
[1740487816151,1.03802,89306.0,89268.0,0.00156791]
[1740487816372,0.87109,89306.0,89268.0,0.00156791]
[1740487816567,0.786829,89306.0,89269.0,0.0757]
[1740487816799,0.578293,89305.0,89269.0,0.0757]
[1740487816976,0.07092624,89304.0,89270.0,0.01386538]
[1740487817418,0.25,89271.0,89270.0,0.01386538]
[1740487817567,0.25,89271.0,89269.0,0.0757]
[1740487820834,0.25,89271.0,89270.0,0.00156814]
[1740487821012,0.25,89271.0,89269.0,0.0757]
[1740487821565,0.25,89271.0,89270.0,0.06120893]
[1740487821763,0.10045497,89294.0,89271.0,0.09714085]
[1740487821975,0.10045497,89294.0,89273.0,0.0826]
[1740487822171,0.10045497,89294.0,89274.0,0.08076779]
[1740487822380,0.10045497,89294.0,89276.0,0.0792]
[1740487822580,0.10045497,89294.0,89277.0,0.08076777]
[1740487823951,0.25,89293.0,89277.0,0.08076777]
[1740487824120,0.25,89293.0,89279.0,0.0791]
[1740487824322,0.25,89293.0,89281.0,0.0798]
[1740487825410,0.07741068,89294.0,89281.0,0.0798]
[1740487825880,0.0672054,89320.0,89281.0,0.0798]
[1740487827633,0.001696,89308.0,89281.0,0.0798]
[1740487827839,0.001696,89308.0,89282.0,0.01438462]
[1740487828276,0.25,89306.0,89281.0,0.0798]
[1740487830687,0.001696,89308.0,89281.0,0.0798]
[1740487830920,0.25,89306.0,89281.0,0.0798]
[1740487831882,0.001696,89308.0,89281.0,0.07984]
[1740487832158,0.25,89306.0,89282.0,0.012664]
[1740487833116,0.25,89306.0,89281.0,0.07984]
[1740487834440,0.25,89304.0,89281.0,0.07984]
[1740487834671,0.25,89302.0,89281.0,4e-05]
[1740487834861,0.25,89300.0,89281.0,4e-05]
[1740487835112,0.25,89298.0,89281.0,4e-05]
[1740487836287,0.046,89305.0,89281.0,4e-05]
[1740487836513,0.25,89303.0,89281.0,4e-05]
[1740487836739,0.25,89301.0,89281.0,4e-05]
[1740487837156,0.25,89299.0,89281.0,4e-05]
[1740487838587,0.3172054,89304.0,89281.0,4e-05]
[1740487838752,0.25,89302.0,89281.0,4e-05]
[1740487838909,0.25,89300.0,89281.0,4e-05]
[1740487839113,0.25,89298.0,89282.0,0.1295]
[1740487839521,0.25,89298.0,89283.0,0.0824]
[1740487839744,0.0672054,89304.0,89285.0,0.0824]
[1740487839946,0.0672054,89304.0,89289.0,0.0824]
[1740487840148,0.0016988,89310.0,89290.0,0.08396766]
[1740487840349,0.0016964,89306.0,89290.0,0.08738037]
[1740487840558,0.0016964,89306.0,89290.0,0.08581271]
[1740487840786,0.0016964,89306.0,89290.0,0.08738047]
[1740487840787,0.25,89294.0,89290.0,0.08738047]
[1740487840984,0.25,89294.0,89290.0,0.08581271]
[1740487843363,0.0016964,89306.0,89290.0,0.08581271]
[1740487844501,0.0016964,89306.0,89291.0,0.00156776]
[1740487844701,0.0016964,89306.0,89292.0,0.0826]
[1740487844916,0.0016964,89306.0,89293.0,0.00156766]
[1740487845113,0.0016964,89306.0,89294.0,0.0826]
[1740487845316,0.0016964,89306.0,89296.0,0.0826]
[1740487845520,0.0016964,89306.0,89298.0,0.0826]
[1740487845725,0.0016964,89306.0,89299.0,0.04796755]
[1740487845905,0.0016964,89306.0,89300.0,0.0826]
[1740487846101,0.0016964,89306.0,89301.0,0.00156757]
[1740487846359,0.0016964,89306.0,89302.0,0.0759]
[1740487846540,0.0016964,89306.0,89302.0,0.08950121]
[1740487846747,0.0016964,89306.0,89303.0,0.0792819]
[1740487847607,0.0016964,89306.0,89304.0,0.08286747]
[1740487848020,0.0016964,89306.0,89305.0,0.00337768]
[1740487848613,0.0016964,89306.0,89305.0,0.08467768]
[1740487848825,0.0016964,89306.0,89305.0,0.08624512]
[1740487849004,0.0016964,89306.0,89305.0,0.09794219]
[1740487849599,0.0016964,89306.0,89305.0,0.08467768]
[1740487850160,0.0016964,89306.0,89305.0,0.14461853]
[1740487850382,0.0016964,89306.0,89305.0,0.24618586]
[1740487850543,0.0016964,89306.0,89305.0,0.24461853]
[1740487855579,0.0016964,89306.0,89305.0,0.56811853]
[1740487855758,0.0016964,89306.0,89305.0,0.63493038]
[1740487860534,0.25,89347.0,89306.0,0.09544085]
[1740487860735,0.25,89347.0,89310.0,0.01454085]
[1740487860892,0.25,89347.0,89311.0,0.0777671]
[1740487861106,0.25,89347.0,89313.0,0.0762]
[1740487861307,0.25,89347.0,89314.0,0.0015671]
[1740487861504,0.004494,89353.0,89313.0,0.0762]
[1740487861711,0.25,89345.0,89315.0,0.00333833]
[1740487862015,0.25,89345.0,89313.0,0.0762]
[1740487862210,0.025,89344.0,89314.0,0.00332163]
[1740487862448,0.25,89345.0,89313.0,0.0762]
[1740487862651,0.004494,89353.0,89314.0,0.00156725]
[1740487862849,0.004494,89353.0,89314.0,0.00332512]
[1740487862850,0.25,89351.0,89314.0,0.00332512]
[1740487863107,0.25,89349.0,89314.0,0.00332512]
[1740487863229,0.25,89347.0,89316.0,0.1264]
[1740487863429,0.25,89347.0,89318.0,0.0811]
[1740487863661,0.25,89347.0,89319.0,0.0811]
[1740487863874,0.25,89347.0,89319.0,0.08442512]
[1740487864536,0.004494,89353.0,89319.0,0.08442512]
[1740487864743,0.25,89351.0,89320.0,0.01312922]
[1740487865070,0.25,89351.0,89321.0,0.00156711]
[1740487865405,0.25,89351.0,89322.0,0.00332512]
[1740487865609,0.25,89349.0,89322.0,0.00332512]
[1740487865828,0.25,89349.0,89323.0,0.00156711]
[1740487866047,0.25,89349.0,89323.0,0.01600926]
[1740487866212,0.25,89349.0,89324.0,0.00332512]
[1740487866640,0.004494,89353.0,89324.0,0.00489223]
[1740487867037,0.25,89351.0,89324.0,0.00332512]
[1740487867242,0.3032,89347.0,89324.0,0.00332512]
[1740487867421,0.05595873,89344.0,89319.0,0.0811]
[1740487867620,0.25,89342.0,89319.0,0.0811]
[1740487867819,0.25,89340.0,89319.0,0.0811]
[1740487868622,0.25,89340.0,89320.0,0.00332371]
[1740487868821,0.25,89348.0,89320.0,0.00332371]
[1740487869035,0.2305687,89377.0,89319.0,0.0811]
[1740487869036,0.25,89345.0,89319.0,0.0811]
[1740487869373,0.25,89343.0,89319.0,0.0811]
[1740487869777,0.11273,89342.0,89319.0,0.0811]
[1740487870177,0.11273,89342.0,89320.0,0.00156731]
[1740487870358,0.23485197,89343.0,89321.0,0.0825]
[1740487870558,0.23485197,89343.0,89323.0,0.0825]
[1740487870864,0.23485197,89343.0,89325.0,0.0825]
[1740487871107,0.23485197,89343.0,89322.0,0.02530248]
[1740487871108,0.004494,89353.0,89328.0,0.0488]
[1740487871331,0.10028178,89357.0,89329.0,0.08246691]
[1740487871547,0.10028178,89357.0,89329.0,0.08579207]
[1740487871771,0.25,89356.0,89331.0,0.0809]
[1740487872017,0.24990405,89356.0,89333.0,0.0809]
[1740487872250,0.24990405,89356.0,89334.0,0.00156686]
[1740487872496,0.24990405,89356.0,89335.0,0.0764]
[1740487872740,0.24990405,89356.0,89338.0,0.0764]
[1740487872969,0.10028178,89357.0,89339.0,0.09035674]
[1740487873296,0.10028178,89357.0,89340.0,0.00331696]
[1740487873484,0.10028178,89357.0,89342.0,0.0764]
[1740487873686,0.10028178,89357.0,89343.0,0.00156671]
[1740487873984,0.10028178,89357.0,89344.0,0.07971696]
[1740487874211,0.10028178,89357.0,89345.0,0.01093408]
[1740487874415,0.10028178,89367.0,89348.0,0.0764]
[1740487874613,0.10028178,89367.0,89349.0,0.08337865]
[1740487874817,0.10028178,89367.0,89350.0,0.01454085]
[1740487875017,0.10028178,89367.0,89351.0,0.0833567]
[1740487875266,0.10028178,89367.0,89353.0,0.0751]
[1740487875590,0.10028178,89367.0,89356.0,0.1215]
[1740487875797,0.10028178,89367.0,89359.0,0.01454085]
[1740487875970,0.10028178,89367.0,89360.0,0.09890726]
[1740487876170,0.25,89366.0,89360.0,0.09890726]
[1740487876402,0.25,89366.0,89360.0,0.10218922]
[1740487876628,0.10028178,89367.0,89360.0,0.13457649]
[1740487876952,0.10028178,89367.0,89360.0,0.28377649]
[1740487877154,0.10028178,89367.0,89360.0,0.28221008]
[1740487877352,0.0016992,89371.0,89360.0,0.38221008]
[1740487877591,0.0016992,89371.0,89360.0,0.28221008]
[1740487878732,0.0016992,89371.0,89360.0,0.18221008]
[1740487878936,0.0016992,89371.0,89360.0,0.15138901]
[1740487879133,0.0016992,89371.0,89360.0,0.13528196]
[1740487881656,0.0016992,89371.0,89360.0,0.08608196]
[1740487885335,0.0016992,89371.0,89360.0,0.10062281]
[1740487885766,0.0016992,89371.0,89360.0,0.14622281]
[1740487885969,0.0016992,89371.0,89360.0,0.1725679]
[1740487887212,0.0016992,89371.0,89360.0,0.13324814]
[1740487887443,0.0016992,89371.0,89360.0,0.13168196]
[1740487895002,0.25,89394.0,89390.0,0.1]
[1740487895213,0.25,89394.0,89389.0,0.1]
[1740487895578,0.283689,89394.0,89389.0,0.1]
[1740487895751,0.25,89394.0,89391.0,0.00541506]
[1740487895984,0.25,89400.0,89391.0,0.00541506]
[1740487896184,0.033688,89396.0,89389.0,0.1]
[1740487896319,0.25,89394.0,89383.0,0.00541506]
[1740487896521,0.25,89392.0,89383.0,0.00541506]
[1740487896767,0.033688,89396.0,89384.0,0.1]
[1740487896768,0.25,89390.0,89384.0,0.1]
[1740487897343,0.25,89390.0,89385.0,0.00321816]
[1740487897947,0.054988,89396.0,89385.0,0.00321816]
[1740487898174,1.29654049,89395.0,89385.0,0.00321816]
[1740487898375,0.25,89393.0,89378.0,0.00541506]
[1740487898549,0.137498,89392.0,89379.0,0.00541506]
[1740487898952,0.05573033,89390.0,89368.0,0.00541506]
[1740487899178,0.05524313,89388.0,89371.0,0.1]
[1740487899385,0.05534889,89386.0,89371.0,0.1]
[1740487899589,1.097908,89385.0,89368.0,0.1]
[1740487899790,1.097908,89385.0,89365.0,0.00541506]
[1740487899989,1.097908,89385.0,89371.0,0.1]
[1740487900192,0.769423,89385.0,89371.0,0.1]
[1740487900527,0.867922,89385.0,89371.0,0.1]
[1740487900812,0.36385696,89384.0,89365.0,0.00541506]
[1740487901033,1.449965,89383.0,89365.0,0.00541506]
[1740487901240,0.11385696,89384.0,89365.0,0.00541506]
[1740487901428,0.11385696,89384.0,89360.0,5.5e-05]
[1740487901429,0.05583335,89380.0,89360.0,5.5e-05]
[1740487901650,0.0552776,89377.0,89366.0,0.00305761]
[1740487901899,2.52283385,89376.0,89360.0,5.5e-05]
[1740487902099,1.79880786,89375.0,89360.0,5.5e-05]
[1740487902215,2.19714896,89374.0,89360.0,5.5e-05]
[1740487902416,1.953875,89373.0,89360.0,5.5e-05]
[1740487902618,1.67714361,89373.0,89360.0,5.5e-05]
[1740487902823,1.899784,89373.0,89360.0,5.5e-05]
[1740487903027,0.25,89371.0,89360.0,5.5e-05]
[1740487903250,0.25,89369.0,89360.0,5.5e-05]
[1740487903461,0.14133451,89368.0,89360.0,5.5e-05]
[1740487903660,0.25,89367.0,89360.0,5.5e-05]
[1740487903874,0.25,89365.0,89360.0,5.5e-05]
[1740487904084,0.25,89363.0,89360.0,5.5e-05]
[1740487904795,1.752193,89362.0,89360.0,5.5e-05]
[1740487904994,1.752193,89362.0,89325.0,0.3235]
[1740487904995,0.05561204,89350.0,89325.0,0.1]
[1740487905205,0.00344539,89351.0,89325.0,0.09655461]
[1740487905206,0.05542032,89348.0,89325.0,0.09655461]
[1740487905420,0.05500534,89346.0,89312.0,0.1]
[1740487905623,0.0558289,89344.0,89315.0,0.09655461]
[1740487905868,0.05570826,89342.0,89302.0,0.1]
[1740487906073,1.752193,89341.0,89301.0,0.09655461]
[1740487906278,0.3279,89340.0,89303.0,0.1]
[1740487906486,1.8074406,89339.0,89303.0,0.1]
[1740487906698,0.30599307,89337.0,89303.0,0.1]
[1740487906912,0.01454085,89334.0,89303.0,0.1]
[1740487907107,0.30567576,89332.0,89303.0,0.1]
[1740487907321,0.30567576,89332.0,89302.0,0.1]
[1740487907322,0.05585998,89329.0,89302.0,0.1]
[1740487907473,0.05509033,89327.0,89302.0,0.1]
[1740487907737,0.01454085,89333.0,89303.0,0.1]
[1740487907738,0.05576882,89325.0,89303.0,0.1]
[1740487907879,1.158053,89324.0,89303.0,0.1]
[1740487908095,0.05581947,89324.0,89303.0,0.1]
[1740487908304,0.05521596,89322.0,89303.0,0.1]
[1740487908505,0.89948215,89321.0,89303.0,0.1]
[1740487908705,0.756072,89320.0,89303.0,0.1]
[1740487908987,0.756072,89320.0,89306.0,0.00320988]
[1740487909159,0.05521596,89322.0,89306.0,0.00320988]
[1740487909160,0.03372,89319.0,89306.0,0.00320988]
[1740487909559,0.25,89317.0,89306.0,0.00320988]
[1740487909762,0.25,89317.0,89313.0,0.1]
[1740487910165,0.25,89317.0,89314.0,0.00320988]
[1740487910369,0.033718,89322.0,89314.0,0.00320988]
[1740487910598,0.01128,89359.0,89314.0,0.00320988]
[1740487910886,0.05510253,89356.0,89315.0,0.06054099]
[1740487911115,0.25,89357.0,89313.0,0.2]
[1740487911116,0.033717,89331.0,89313.0,0.2]
[1740487911295,0.25,89329.0,89313.0,0.2]
[1740487911434,0.05971586,89340.0,89314.0,0.00381173]
[1740487911634,0.582311,89339.0,89314.0,0.00381173]
[1740487911840,0.033716,89332.0,89314.0,0.10381173]
[1740487912084,0.033716,89332.0,89323.0,0.1]
[1740487912285,0.033716,89332.0,89325.0,0.1]
[1740487912517,0.033716,89332.0,89320.0,0.1]
[1740487912518,0.033716,89332.0,89326.0,0.00381173]
[1740487912696,0.05971586,89340.0,89326.0,0.00381173]
[1740487912922,0.58828259,89339.0,89320.0,0.1]
[1740487913075,0.582311,89338.0,89327.0,0.00381173]
[1740487913280,0.582311,89338.0,89314.0,0.1]
[1740487913500,0.25010015,89337.0,89315.0,0.00381173]
[1740487913701,0.25,89335.0,89315.0,0.00381173]
[1740487913885,0.25,89333.0,89315.0,0.00381173]
[1740487914077,0.25,89331.0,89322.0,0.1]
[1740487914501,0.25,89331.0,89323.0,0.00381173]
[1740487915310,0.00597159,89339.0,89323.0,0.00381173]
[1740487915515,0.231459,89338.0,89323.0,0.00381173]
[1740487915739,0.25857336,89338.0,89323.0,0.00381173]
[1740487915921,0.231471,89337.0,89323.0,0.00381173]
[1740487916124,0.25,89336.0,89323.0,0.00381173]
[1740487916325,0.25,89334.0,89323.0,0.00381173]
[1740487916723,0.25,89332.0,89323.0,0.00381173]
[1740487918061,0.02771144,89331.0,89323.0,0.00381173]
[1740487918396,0.00597159,89339.0,89323.0,0.00381173]
[1740487918527,0.25,89337.0,89323.0,0.00381173]
[1740487918730,0.25,89335.0,89323.0,0.00381173]
[1740487918935,0.25,89333.0,89322.0,0.1]
[1740487919179,0.25,89331.0,89322.0,0.1]
[1740487919567,0.25,89331.0,89323.0,0.00378903]
[1740487920132,0.00597159,89339.0,89323.0,0.00378903]
[1740487920368,0.25,89337.0,89323.0,0.00378903]
[1740487920577,0.25,89335.0,89323.0,0.00378903]
[1740487920799,0.25,89333.0,89322.0,0.1]
[1740487921010,0.25,89331.0,89322.0,0.1]
[1740487921489,0.25,89331.0,89323.0,0.00430986]
[1740487921724,0.25,89329.0,89323.0,0.00430986]
[1740487921956,0.25,89327.0,89324.0,0.00377113]
[1740487922185,0.25,89325.0,89315.0,0.3235]
[1740487922656,0.25,89325.0,89316.0,0.00377113]
[1740487923065,0.25,89323.0,89316.0,0.00377113]
[1740487924221,0.02086426,89322.0,89316.0,0.00377113]
[1740487924485,0.02086426,89322.0,89321.0,0.1]
[1740487924974,0.02086426,89322.0,89321.0,0.52780986]
[1740487925218,0.02086426,89322.0,89321.0,0.65420986]
[1740487925453,0.0008486,89348.0,89347.0,0.2]
[1740487925723,0.0008486,89348.0,89347.0,0.5733]
[1740487925972,0.0008486,89348.0,89347.0,0.57710688]
[1740487926207,0.0008486,89348.0,89347.0,0.64266688]
[1740487926446,0.0008486,89348.0,89347.0,0.57710688]
[1740487926693,0.0008486,89348.0,89347.0,1.20060688]
[1740487927716,0.3287,89421.0,89378.0,0.1]
[1740487927998,0.00012731,89409.0,89388.0,0.1]
[1740487928213,0.199726,89408.0,89392.0,0.1]
[1740487928466,0.033692,89397.0,89392.0,0.1]
[1740487928676,0.00012731,89419.0,89393.0,0.00424361]
[1740487928834,0.033689,89407.0,89393.0,0.00424361]
[1740487929034,0.25,89405.0,89393.0,0.00424361]
[1740487929235,0.732927,89404.0,89393.0,0.00424361]
[1740487929431,0.00012902,89404.0,89385.0,0.1]
[1740487929637,1.137912,89403.0,89379.0,0.2]
[1740487929857,1.137912,89403.0,89361.0,0.09042051]
[1740487929858,0.25,89402.0,89383.0,0.1]
[1740487930088,0.25,89400.0,89372.0,0.2]
[1740487930278,0.05578643,89397.0,89368.0,0.08]
[1740487930436,0.25,89395.0,89371.0,0.1]
[1740487930634,0.25,89393.0,89371.0,0.1]
[1740487930839,0.25,89393.0,89384.0,0.1]
[1740487931043,0.25,89393.0,89387.0,0.1]
[1740487931470,0.25,89393.0,89392.0,0.1]
[1740487931667,0.25,89410.0,89391.0,0.079]
[1740487931891,0.00012902,89393.0,89392.0,0.00417019]
[1740487932098,0.00012902,89393.0,89387.0,0.1]
[1740487932272,0.00012902,89393.0,89388.0,0.00417019]
[1740487932573,0.00012902,89393.0,89381.0,0.2782]
[1740487932792,0.25,89391.0,89389.0,0.00417019]
[1740487933004,0.25,89389.0,89381.0,0.1782]
[1740487933168,0.25,89387.0,89381.0,0.1782]
[1740487933369,0.25,89387.0,89386.0,0.1]
[1740487933969,0.25,89387.0,89386.0,0.17898319]
[1740487934181,0.25,89387.0,89386.0,0.25116319]
[1740487934401,0.00012902,89409.0,89386.0,0.25116319]
[1740487934604,0.25,89407.0,89388.0,0.1]
[1740487934817,0.25,89405.0,89392.0,0.1]
[1740487934979,0.25,89405.0,89398.0,0.1]
[1740487935401,0.25,89405.0,89386.0,0.047]
[1740487935402,0.033687,89413.0,89406.0,0.1]
[1740487935604,0.033687,89413.0,89386.0,0.047]
[1740487935605,0.033687,89413.0,89407.0,0.0825]
[1740487935805,0.033687,89413.0,89407.0,0.08666523]
[1740487936184,0.25,89419.0,89407.0,0.08666523]
[1740487936391,0.25,89417.0,89407.0,0.08666523]
[1740487936587,0.25,89415.0,89407.0,0.08666523]
[1740487936789,0.25,89413.0,89402.0,0.1]
[1740487937109,0.25,89413.0,89402.0,0.2]
[1740487937288,0.0008485,89407.0,89403.0,0.00415186]
[1740487937493,0.0008485,89407.0,89398.0,0.0825]
[1740487937787,0.0008485,89407.0,89399.0,0.00415186]
[1740487938028,0.25,89405.0,89399.0,0.00415186]
[1740487938190,0.25,89403.0,89399.0,0.00415186]
[1740487938558,0.25,89403.0,89398.0,0.0825]
[1740487938877,0.25,89403.0,89399.0,0.00414729]
[1740487939072,0.25,89403.0,89398.0,0.0825]
[1740487939285,0.0008485,89407.0,89399.0,0.00414729]
[1740487939485,0.25,89405.0,89399.0,0.00414729]
[1740487939702,0.25,89403.0,89398.0,0.0825]
[1740487940115,0.25,89401.0,89387.0,0.406]
[1740487940323,0.25,89399.0,89380.0,0.1]
[1740487940562,0.02508485,89403.0,89380.0,0.1]
[1740487940563,0.25,89397.0,89380.0,0.1]
[1740487940771,0.25,89395.0,89379.0,0.0825]
[1740487940972,0.25,89393.0,89380.0,0.1]
[1740487941186,0.25,89391.0,89380.0,0.1]
[1740487941361,0.25,89389.0,89380.0,0.1]
[1740487941771,0.25,89387.0,89380.0,0.1]
[1740487941969,0.1184,89448.0,89380.0,0.1]
[1740487942232,0.05555048,89402.0,89380.0,0.4235]
[1740487942525,0.0550379,89400.0,89381.0,0.00415197]
[1740487942685,1.441632,89399.0,89381.0,0.00415197]
[1740487943038,1.300943,89398.0,89381.0,0.00415197]
[1740487943368,0.754994,89398.0,89381.0,0.00415197]
[1740487943576,0.05575224,89402.0,89381.0,0.00415197]
[1740487943782,0.56250146,89402.0,89381.0,0.00415197]
[1740487944125,0.05563786,89399.0,89381.0,0.00415197]
[1740487944433,0.25,89397.0,89381.0,0.00415197]
[1740487944586,0.25,89395.0,89381.0,0.00415197]
[1740487944792,0.25,89393.0,89381.0,0.00415197]
[1740487944990,0.25,89393.0,89380.0,0.3235]
[1740487944991,0.25,89391.0,89380.0,0.3235]
[1740487945190,0.25,89389.0,89382.0,0.00415781]
[1740487945389,0.25,89387.0,89380.0,0.4235]
[1740487945590,0.25,89387.0,89383.0,0.00415781]
[1740487945812,0.25,89387.0,89380.0,0.3235]
[1740487946015,0.025,89386.0,89384.0,0.00415781]
[1740487946201,0.05590409,89384.0,89370.0,0.1]
[1740487946398,0.30519752,89382.0,89370.0,0.1]
[1740487946596,0.25,89380.0,89372.0,0.00415781]
[1740487946800,0.25,89378.0,89370.0,0.1]
[1740487947043,0.25,89376.0,89369.0,0.0763]
[1740487947304,0.25,89376.0,89372.0,0.00415781]
[1740487947505,0.25,89376.0,89369.0,0.0763]
[1740487947704,0.25,89376.0,89372.0,0.00415781]
[1740487947909,0.25,89376.0,89369.0,0.0763]
[1740487948120,0.025,89386.0,89372.0,0.00415781]
[1740487948324,0.25,89384.0,89372.0,0.00415781]
[1740487948521,0.25,89382.0,89372.0,0.00415781]
[1740487948799,0.25,89380.0,89369.0,0.0763]
[1740487949003,0.25,89378.0,89369.0,0.0763]
[1740487949174,0.25,89376.0,89372.0,4e-05]
[1740487949707,0.275,89376.0,89372.0,4e-05]
[1740487950060,0.25,89374.0,89372.0,4e-05]
[1740487950261,1.07728,89373.0,89372.0,4e-05]
[1740487950490,0.677781,89373.0,89372.0,4e-05]
[1740487950688,0.658467,89373.0,89372.0,4e-05]
[1740487951033,0.529039,89373.0,89372.0,4e-05]
[1740487951161,0.25,89373.0,89372.0,0.17684]
[1740487951363,0.25,89373.0,89372.0,0.22514]
[1740487951561,0.25,89373.0,89372.0,0.22931688]
[1740487951764,0.2495,89373.0,89372.0,0.22931688]
[1740487952605,0.2495,89373.0,89372.0,0.32931688]
[1740487955372,0.2495,89373.0,89372.0,0.02931688]
[1740487955570,0.5,89376.0,89375.0,0.02931688]
[1740487955886,0.0008484,89413.0,89412.0,0.02931688]
[1740487956305,0.0008484,89413.0,89412.0,0.0331719]
[1740487956524,0.0008484,89413.0,89412.0,0.02931688]
[1740487958225,0.0008484,89413.0,89412.0,0.03310555]
[1740487959249,0.0008484,89413.0,89412.0,0.0476464]
[1740487959455,0.0008484,89413.0,89412.0,0.04921202]
[1740487963797,0.0008484,89413.0,89412.0,0.0476464]
[1740487964198,0.0008484,89413.0,89412.0,0.02956952]
[1740487964462,0.0008484,89413.0,89412.0,0.03310555]
[1740487967898,0.0008484,89413.0,89412.0,0.0476464]
[1740487968058,0.0008484,89413.0,89412.0,0.0536916]
[1740487968301,0.0008484,89413.0,89412.0,0.0476464]
[1740487969045,0.0755,89450.0,89413.0,0.01454085]
[1740487969261,0.0755,89450.0,89412.0,0.03310555]
[1740487969262,0.0755,89450.0,89435.0,0.02931688]
[1740487969482,0.0755,89450.0,89431.0,0.02931688]
[1740487969683,0.0755,89450.0,89435.0,0.02931688]
[1740487970092,1.44385675,89449.0,89426.0,0.02931688]
[1740487970306,1.44385675,89449.0,89403.0,0.0493]
[1740487970307,0.05554901,89447.0,89390.0,0.01124]
[1740487970472,0.076,89445.0,89414.0,0.02931688]
[1740487970735,2.201349,89444.0,89414.0,0.02931688]
[1740487970948,0.0786,89441.0,89403.0,0.02931688]
[1740487971127,2.96715888,89440.0,89390.0,0.01124]
[1740487971327,0.11385696,89443.0,89399.0,0.02931688]
[1740487971328,0.05586966,89435.0,89399.0,0.02931688]
[1740487971643,0.05571063,89430.0,89381.0,0.01124]
[1740487971879,0.30559786,89427.0,89394.0,0.02931688]
[1740487972096,0.05554794,89424.0,89394.0,0.02931688]
[1740487972298,0.05542286,89421.0,89394.0,0.02931688]
[1740487972454,0.30530861,89419.0,89394.0,0.02931688]
[1740487972664,0.25,89417.0,89394.0,0.02931688]
[1740487972893,0.25,89415.0,89394.0,0.02931688]
[1740487973089,0.25,89415.0,89375.0,0.10496136]
[1740487973090,0.3273,89413.0,89386.0,0.02931688]
[1740487973268,0.25,89411.0,89387.0,0.02931688]
[1740487973477,0.0486,89408.0,89375.0,0.09042051]
[1740487973717,0.25,89406.0,89375.0,0.09042051]
[1740487973889,0.25,89404.0,89389.0,0.02931688]
[1740487974092,0.25,89402.0,89388.0,0.02931688]
[1740487974269,0.827063,89401.0,89389.0,0.02931688]
[1740487974490,0.827063,89401.0,89388.0,0.02931688]
[1740487974687,0.53661975,89401.0,89375.0,0.09042051]
[1740487975031,0.53661975,89401.0,89380.0,0.02931688]
[1740487975256,0.53661975,89401.0,89375.0,0.09042051]
[1740487975533,0.53661975,89401.0,89375.0,0.11973739]
[1740487975754,0.53661975,89401.0,89380.0,0.02931688]
[1740487976633,0.691894,89401.0,89380.0,0.02931688]
[1740487977045,0.571353,89401.0,89380.0,0.02931688]
[1740487977243,0.571353,89401.0,89385.0,0.02931688]
[1740487977244,0.420856,89401.0,89385.0,0.02931688]
[1740487977449,0.404493,89401.0,89385.0,0.02931688]
[1740487979772,0.4498023,89401.0,89385.0,0.02931688]
[1740487980721,0.5270023,89401.0,89376.0,0.0016964]
[1740487980908,0.52722176,89401.0,89376.0,0.0016964]
[1740487981792,0.5827395,89401.0,89376.0,0.0016964]
[1740487983202,0.6279395,89401.0,89376.0,0.0016964]
[1740487983464,0.0764,89399.0,89376.0,0.0016964]
[1740487983633,0.0764,89397.0,89376.0,0.0016964]
[1740487983833,0.25,89395.0,89376.0,0.0016964]
[1740487984036,0.935906,89394.0,89378.0,0.09042051]
[1740487984220,0.25,89392.0,89378.0,0.09042051]
[1740487984422,0.25,89390.0,89378.0,0.09042051]
[1740487984667,0.25,89388.0,89378.0,0.09042051]
[1740487984865,0.25,89386.0,89378.0,0.09042051]
[1740487985039,1.029339,89385.0,89378.0,0.09042051]
[1740487985245,2.332483,89392.0,89378.0,0.09042051]
[1740487985677,1.344391,89392.0,89378.0,0.09042051]
[1740487985878,0.841061,89395.0,89378.0,0.09042051]
[1740487986080,0.0452,89401.0,89388.0,0.09042051]
[1740487986253,0.0765,89412.0,89388.0,0.09042051]
[1740487986563,0.498381,89412.0,89390.0,0.02931688]
[1740487986788,0.151226,89411.0,89390.0,0.02931688]
[1740487987273,0.1000153,89413.0,89390.0,0.04129062]
[1740487987476,0.1000153,89413.0,89404.0,0.02931688]
[1740487987846,0.1000153,89413.0,89405.0,0.00331125]
[1740487988047,0.25,89412.0,89411.0,0.02931688]
[1740487988249,0.1000153,89413.0,89411.0,0.02931688]
[1740487988466,0.25,89412.0,89411.0,0.02931688]
[1740487988945,0.1008635,89413.0,89411.0,0.02931688]
[1740487989534,0.25,89412.0,89411.0,0.02931688]
[1740487990759,0.0008482,89413.0,89411.0,0.02931688]
[1740487992373,0.0008482,89413.0,89412.0,0.02931688]
[1740487992771,0.0008482,89413.0,89412.0,0.10741688]
[1740487992975,0.0008482,89413.0,89412.0,0.13269942]
[1740487993176,0.0008482,89413.0,89412.0,0.17869942]
[1740487993575,0.0008482,89413.0,89412.0,0.18193231]
[1740487995042,0.0008482,89413.0,89412.0,0.18349751]
[1740487995903,0.0006982,89413.0,89412.0,0.18349751]
[1740488001371,0.0006982,89413.0,89412.0,0.28349751]
[1740488001573,0.0006982,89413.0,89412.0,0.28193231]